bitfinex/quotes_BTCUSD_20250809
["timestamp","ask_amount","ask_price","bid_price","bid_amount"]
[1754698683700,1.43208873,116810.0,116800.0,0.004085]
[1754698684105,1.30236873,116810.0,116800.0,0.004085]
[1754698684345,1.11235826,116810.0,116800.0,0.006195]
[1754698687248,1.11539826,116810.0,116800.0,0.006195]
[1754698690695,1.11539826,116810.0,116800.0,0.004085]
[1754698692915,0.79855779,116810.0,116800.0,0.004085]
[1754698693131,1.11539826,116810.0,116800.0,0.004085]
[1754698696928,1.43223873,116810.0,116800.0,0.004085]
[1754698710663,1.43291873,116810.0,116800.0,0.004085]
[1754698713470,1.30247873,116810.0,116800.0,0.004085]
[1754698713649,1.43287873,116810.0,116800.0,0.004085]
[1754698719391,1.30247873,116810.0,116800.0,0.004085]
[1754698719705,1.43291873,116810.0,116800.0,0.004085]
[1754698721130,1.43291873,116810.0,116800.0,0.009185]
[1754698721131,0.43655877,116810.0,116800.0,0.009185]
[1754698721332,0.75339924,116810.0,116800.0,0.009185]
[1754698722365,0.43655877,116810.0,116800.0,0.009185]
[1754698722624,0.75339924,116810.0,116800.0,0.009185]
[1754698723996,0.30619877,116810.0,116800.0,0.18041787]
[1754698724194,0.026721,116810.0,116800.0,0.49725834]
[1754698724396,0.001,116810.0,116800.0,0.81409881]
[1754698724604,0.13144,116810.0,116800.0,0.81409881]
[1754698725681,0.13144,116810.0,116800.0,0.49725834]
[1754698726051,0.1314,116810.0,116800.0,0.89996092]
[1754698726249,0.1304,116810.0,116800.0,0.89996092]
[1754698726478,0.1314,116810.0,116800.0,0.89996092]
[1754698726698,0.1324,116810.0,116800.0,0.89996092]
[1754698726887,0.1314,116810.0,116800.0,0.89996092]
[1754698727193,0.1324,116810.0,116800.0,0.89996092]
[1754698749495,0.002,116810.0,116800.0,0.92614932]
[1754698749710,0.13208,116810.0,116800.0,0.92614932]
[1754698750163,0.13208,116810.0,116800.0,0.89996092]
[1754698754373,0.13208,116810.0,116800.0,0.92623666]
[1754698755766,0.002,116810.0,116800.0,0.92623666]
[1754698764801,0.002,116810.0,116800.0,1.05619666]
[1754698770474,0.002,116810.0,116800.0,0.42251572]
[1754698770697,0.002,116810.0,116800.0,1.05619666]
[1754698778337,0.002,116810.0,116800.0,0.42251572]
[1754698778691,0.002,116810.0,116800.0,1.05619666]
[1754698779120,0.002,116810.0,116800.0,1.06183666]
[1754698779424,0.002,116810.0,116800.0,1.05619666]
[1754698780985,0.002,116810.0,116800.0,0.42251572]
[1754698781284,0.002,116810.0,116800.0,1.05619666]
[1754698782600,0.002,116810.0,116800.0,0.42251572]
[1754698782729,0.002,116810.0,116800.0,1.05619666]
[1754698788913,0.002,116810.0,116800.0,1.16410883]
[1754698790468,0.002,116810.0,116800.0,0.84726836]
[1754698790893,0.002,116810.0,116800.0,0.84412836]
[1754698791507,0.00396,116810.0,116800.0,0.84412836]
[1754698796464,0.00396,116810.0,116800.0,0.52728789]
[1754698797030,0.00396,116810.0,116800.0,0.84412836]
[1754698802673,0.002,116810.0,116800.0,0.84719836]
[1754698803557,0.002,116810.0,116800.0,1.16403883]
[1754698806898,0.001,116810.0,116800.0,1.16403883]
[1754698807308,0.001,116810.0,116800.0,1.16503883]
[1754698807511,0.13318,116830.0,116820.0,0.17120356]
[1754698807736,0.13514,116830.0,116820.0,0.17120356]
[1754698807887,0.00514,116830.0,116820.0,0.17120356]
[1754698808581,0.00514,116830.0,116820.0,0.49013403]
[1754698808582,0.00196,116830.0,116820.0,0.49013403]
[1754698808786,0.13322,116840.0,116830.0,0.1711889]
[1754698808984,0.13518,116840.0,116830.0,0.1711889]
[1754698809157,0.13518,116840.0,116830.0,0.17999552]
[1754698809500,0.45202047,116840.0,116830.0,0.17999552]
[1754698809703,0.13518,116840.0,116830.0,0.17999552]
[1754698809877,0.45202047,116840.0,116830.0,0.17999552]
[1754698811170,0.13518,116840.0,116830.0,0.18099552]
[1754698812517,0.13518,116840.0,116830.0,0.49783599]
[1754698812725,0.13518,116840.0,116830.0,0.18308552]
[1754698820953,0.13518,116840.0,116830.0,0.18099552]
[1754698823129,0.45202047,116840.0,116830.0,0.18099552]
[1754698826372,0.13518,116840.0,116830.0,0.18099552]
[1754698826741,0.45202047,116840.0,116830.0,0.18099552]
[1754698831803,0.45202047,116840.0,116830.0,0.1721889]
[1754698835064,0.13518,116840.0,116830.0,0.1721889]
[1754698835492,0.45202047,116840.0,116830.0,0.1721889]
[1754698836674,0.45202047,116840.0,116830.0,0.18100174]
[1754698838042,0.62319472,116840.0,116830.0,0.18100174]
[1754698838240,0.62319472,116840.0,116830.0,0.1721889]
[1754698839376,0.17631425,116840.0,116830.0,0.1721889]
[1754698839574,0.62307472,116840.0,116830.0,0.1721889]
[1754698842396,0.93991519,116840.0,116830.0,0.1721889]
[1754698842588,0.62307472,116840.0,116830.0,0.1721889]
[1754698844129,0.98923317,116840.0,116830.0,0.001]
[1754698844731,0.98923317,116840.0,116830.0,0.1721889]
[1754698845214,0.6723927,116840.0,116830.0,0.1721889]
[1754698845450,0.62307472,116840.0,116830.0,0.1721889]
[1754698847159,0.13506,116840.0,116830.0,0.1721889]
[1754698847494,0.45190047,116840.0,116830.0,0.1721889]
[1754698849350,0.13506,116840.0,116830.0,0.1721889]
[1754698849489,0.45190047,116840.0,116830.0,0.1721889]
[1754698850167,0.13506,116840.0,116830.0,0.1721889]
[1754698850367,0.45190047,116840.0,116830.0,0.1721889]
[1754698850991,0.13506,116840.0,116830.0,0.1721889]
[1754698851406,0.45190047,116840.0,116830.0,0.1721889]
[1754698852645,0.45190047,116840.0,116830.0,0.1741589]
[1754698852844,0.13188,116840.0,116830.0,0.1741589]
[1754698853045,0.44872047,116840.0,116830.0,0.1741589]
[1754698853622,0.45172047,116840.0,116830.0,0.1741589]
[1754698854565,0.13488,116840.0,116830.0,0.1741589]
[1754698854770,0.45172047,116840.0,116830.0,0.1741589]
[1754698857215,0.13488,116840.0,116830.0,0.1741589]
[1754698857421,0.45172047,116840.0,116830.0,0.1741589]
[1754698857822,0.13488,116840.0,116830.0,0.1741589]
[1754698858056,0.45172047,116840.0,116830.0,0.1741589]
[1754698858437,0.13488,116840.0,116830.0,0.1741589]
[1754698858655,0.45172047,116840.0,116830.0,0.1741589]
[1754698859424,0.13488,116840.0,116830.0,0.1741589]
[1754698859617,0.45172047,116840.0,116830.0,0.1741589]
[1754698862690,0.93973519,116840.0,116830.0,0.1721889]
[1754698862889,0.76856094,116840.0,116830.0,0.1721889]
[1754698863070,0.85535519,116840.0,116830.0,0.1721889]
[1754698865194,0.76856094,116840.0,116830.0,0.1721889]
[1754698865396,0.45172047,116840.0,116830.0,0.1721889]
[1754698865802,0.76856094,116840.0,116830.0,0.1721889]
[1754698868400,0.13488,116840.0,116830.0,0.1721889]
[1754698868528,0.76856094,116840.0,116830.0,0.1721889]
[1754698869331,0.84094915,116840.0,116830.0,0.1721889]
[1754698869572,0.76856094,116840.0,116830.0,0.1721889]
[1754698871094,0.13488,116840.0,116830.0,0.1721889]
[1754698871298,0.45172047,116840.0,116830.0,0.1721889]
[1754698872909,0.13488,116840.0,116830.0,0.1721889]
[1754698873136,0.45172047,116840.0,116830.0,0.1721889]
[1754698875513,0.45172047,116840.0,116830.0,0.1741589]
[1754698875914,0.13188,116840.0,116830.0,0.1772789]
[1754698876120,0.44676047,116840.0,116830.0,0.1772789]
[1754698876876,0.12992,116840.0,116830.0,0.1772789]
[1754698877950,0.12992,116840.0,116830.0,0.1741589]
[1754698878360,0.44676047,116840.0,116830.0,0.1741589]
[1754698878628,0.12992,116840.0,116830.0,0.1741589]
[1754698879917,0.12992,116840.0,116830.0,0.49099937]
[1754698880412,0.12992,116840.0,116830.0,0.1741589]
[1754698881615,0.12992,116840.0,116830.0,0.49418937]
[1754698882035,0.12992,116840.0,116830.0,0.1773489]
[1754698886812,0.12992,116840.0,116830.0,0.1741589]
[1754698887050,0.13191,116840.0,116830.0,0.1741589]
[1754698890803,0.12992,116840.0,116830.0,0.1741589]
[1754698891005,0.12992,116840.0,116830.0,0.1773489]
[1754698891695,0.13191,116840.0,116830.0,0.1741589]
[1754698892887,0.13191,116840.0,116830.0,0.49099937]
[1754698895827,0.13191,116840.0,116830.0,0.1741589]
[1754698896314,0.13191,116840.0,116830.0,0.49099937]
[1754698896874,0.135,116840.0,116830.0,0.49099937]
[1754698897663,0.17419825,116840.0,116830.0,0.49099937]
[1754698898323,0.17419825,116840.0,116830.0,0.1741589]
[1754698898527,0.17419825,116840.0,116830.0,0.1721889]
[1754698898843,0.49103872,116840.0,116830.0,0.1721889]
[1754698899447,0.66221297,116840.0,116830.0,0.1721889]
[1754698902075,0.3453725,116840.0,116830.0,0.1721889]
[1754698902281,0.66221297,116840.0,116830.0,0.1721889]
[1754698903005,0.49103872,116840.0,116830.0,0.1721889]
[1754698903921,0.66221297,116840.0,116830.0,0.1721889]
[1754698904106,0.3453725,116840.0,116830.0,0.1721889]
[1754698904592,0.17419825,116840.0,116830.0,0.1721889]
[1754698904807,0.49103872,116840.0,116830.0,0.1721889]
[1754698904997,0.66221297,116840.0,116830.0,0.1721889]
[1754698908299,0.3453725,116840.0,116830.0,0.1721889]
[1754698908738,0.17419825,116840.0,116830.0,0.1721889]
[1754698909646,0.49103872,116840.0,116830.0,0.1721889]
[1754698911585,0.17419825,116840.0,116830.0,0.1721889]
[1754698911974,0.3453725,116840.0,116830.0,0.1721889]
[1754698913980,0.17419825,116840.0,116830.0,0.1721889]
[1754698914788,0.49103872,116840.0,116830.0,0.1721889]
[1754698916010,0.17419825,116840.0,116830.0,0.1721889]
[1754698916669,0.49103872,116840.0,116830.0,0.1721889]
[1754698917648,0.3453725,116840.0,116830.0,0.1721889]
[1754698917850,0.66221297,116840.0,116830.0,0.1721889]
[1754698918849,0.3453725,116840.0,116830.0,0.1721889]
[1754698919089,0.66221297,116840.0,116830.0,0.1721889]
[1754698923424,0.3453725,116840.0,116830.0,0.1721889]
[1754698923632,0.66221297,116840.0,116830.0,0.1721889]
[1754698923836,0.3453725,116840.0,116830.0,0.1721889]
[1754698924054,0.66221297,116840.0,116830.0,0.1721889]
[1754698926520,0.3453725,116840.0,116830.0,0.1721889]
[1754698926823,0.66221297,116840.0,116830.0,0.1721889]
[1754698927785,0.3453725,116840.0,116830.0,0.1721889]
[1754698927909,0.66221297,116840.0,116830.0,0.1721889]
[1754698930284,0.3453725,116840.0,116830.0,0.1721889]
[1754698930478,0.66221297,116840.0,116830.0,0.1721889]
[1754698933516,0.3453725,116840.0,116830.0,0.1721889]
[1754698933724,0.66221297,116840.0,116830.0,0.1721889]
[1754698937878,0.3453725,116840.0,116830.0,0.1721889]
[1754698938074,0.66221297,116840.0,116830.0,0.1721889]
[1754698938918,0.66221297,116840.0,116830.0,0.001]
[1754698942692,0.3453725,116840.0,116830.0,0.001]
[1754698943166,0.68792797,116840.0,116830.0,0.001]
[1754698943937,0.68792797,116840.0,116830.0,0.1721889]
[1754698948526,0.3710875,116840.0,116830.0,0.1721889]
[1754698948714,0.68792797,116840.0,116830.0,0.1721889]
[1754698951152,0.3710875,116840.0,116830.0,0.1721889]
[1754698953101,0.3710875,116840.0,116830.0,0.49099937]
[1754698953285,0.3679975,116840.0,116830.0,0.49099937]
[1754698953708,0.32879925,116840.0,116830.0,0.49099937]
[1754698956524,0.32879925,116840.0,116830.0,0.1741589]
[1754698956861,0.32879925,116840.0,116830.0,0.49099937]
[1754698957946,0.32879925,116840.0,116830.0,0.1741589]
[1754698958164,0.32879925,116840.0,116830.0,0.49099937]
[1754698958529,0.41080028,116840.0,116830.0,0.49099937]
[1754698958877,0.23962603,116840.0,116830.0,0.49099937]
[1754698959257,0.24283603,116840.0,116830.0,0.49099937]
[1754698960522,0.24283603,116840.0,116830.0,0.1741589]
[1754698960738,0.24283603,116840.0,116830.0,0.49099937]
[1754698961381,0.33200925,116840.0,116830.0,0.49099937]
[1754698965308,0.33200925,116840.0,116830.0,0.1741589]
[1754698968343,0.64884972,116840.0,116830.0,0.1741589]
[1754698968988,0.33200925,116840.0,116830.0,0.1741589]
[1754698969208,0.33200925,116840.0,116830.0,0.49099937]
[1754698969604,0.41401028,116840.0,116830.0,0.49099937]
[1754698971070,0.41401028,116840.0,116830.0,0.1741589]
[1754698971268,0.41401028,116840.0,116830.0,0.49099937]
[1754698972679,0.41401028,116840.0,116830.0,0.1741589]
[1754698973507,0.41401028,116840.0,116830.0,0.49099937]
[1754698974456,0.41401028,116840.0,116830.0,0.1741589]
[1754698975042,0.41401028,116840.0,116830.0,0.49099937]
[1754698976533,0.41401028,116840.0,116830.0,0.1741589]
[1754698977517,0.73085075,116840.0,116830.0,0.1741589]
[1754698978989,0.41401028,116840.0,116830.0,0.1741589]
[1754698980302,0.41401028,116840.0,116830.0,0.00297]
[1754698980480,0.73085075,116840.0,116830.0,0.001]
[1754698980699,1.13455333,116840.0,116830.0,0.001]
[1754698981891,0.81771286,116840.0,116830.0,0.001]
[1754698982155,0.82652516,116840.0,116830.0,0.001]
[1754698982692,0.50087239,116840.0,116830.0,0.001]
[1754698982895,0.81771286,116840.0,116830.0,0.001]
[1754698983517,0.24448711,116840.0,116830.0,0.49098937]
[1754698983695,0.41367136,116840.0,116830.0,0.49421937]
[1754698983898,0.025715,116840.0,116830.0,0.49421937]
[1754698984134,0.155995,116840.0,116830.0,0.49421937]
[1754698984751,0.32716925,116840.0,116830.0,0.49421937]
[1754698984928,0.155995,116840.0,116830.0,0.49421937]
[1754698986290,0.16535309,116840.0,116830.0,0.49421937]
[1754698986621,0.155995,116840.0,116830.0,0.49421937]
[1754698991091,0.155995,116840.0,116830.0,0.1773789]
[1754698993223,0.13028,116840.0,116830.0,0.1773789]
[1754699001282,0.13028,116840.0,116830.0,0.1741489]
[1754699002851,0.13239,116840.0,116830.0,0.1741489]
[1754699006035,0.1973005,116840.0,116830.0,0.1741489]
[1754699007484,0.13239,116840.0,116830.0,0.1741489]
[1754699007897,0.44923047,116840.0,116830.0,0.1741489]
[1754699014548,0.45225047,116840.0,116830.0,0.1741489]
[1754699015097,0.62342472,116840.0,116830.0,0.1741489]
[1754699015921,0.62342472,116840.0,116830.0,0.1721889]
[1754699017054,0.6870298,116840.0,116830.0,0.001]
[1754699017265,1.00387027,116840.0,116830.0,0.001]
[1754699017472,0.6870298,116840.0,116830.0,0.001]
[1754699018421,1.09073238,116840.0,116830.0,0.001]
[1754699018837,1.11644838,116840.0,116830.0,0.001]
[1754699023172,0.48276744,116840.0,116830.0,0.001]
[1754699023382,0.73600283,116840.0,116830.0,0.001]
[1754699024379,0.41916236,116840.0,116830.0,0.001]
[1754699024625,0.73600283,116840.0,116830.0,0.001]
[1754699031616,0.41916236,116840.0,116830.0,0.001]
[1754699031767,0.73600283,116840.0,116830.0,0.001]
[1754699031987,0.76086713,116840.0,116830.0,0.001]
[1754699032575,0.76086713,116840.0,116830.0,0.1721889]
[1754699039327,0.76086713,116840.0,116830.0,0.001]
[1754699039718,0.76086713,116840.0,116830.0,0.1721889]
[1754699040623,0.76086713,116840.0,116830.0,0.001]
[1754699042039,0.76086713,116840.0,116830.0,0.1721889]
[1754699043008,0.44402666,116840.0,116830.0,0.1721889]
[1754699043393,0.76086713,116840.0,116830.0,0.1721889]
[1754699043775,0.41831066,116840.0,116830.0,0.1721889]
[1754699044038,0.13028,116840.0,116830.0,0.49418937]
[1754699046564,0.30145425,116840.0,116830.0,0.49418937]
[1754699046765,0.13028,116840.0,116830.0,0.49418937]
[1754699047760,0.30145425,116840.0,116830.0,0.49418937]
[1754699049756,0.13028,116840.0,116830.0,0.49418937]
[1754699051630,0.36616495,116840.0,116830.0,0.49418937]
[1754699055054,0.30145425,116840.0,116830.0,0.49418937]
[1754699057439,0.30145425,116840.0,116830.0,0.1773489]
[1754699060341,0.30145425,116840.0,116830.0,0.1742389]
[1754699060957,0.13,116840.0,116830.0,0.49418937]
[1754699064454,0.129007,116840.0,116830.0,0.49418937]
[1754699085993,0.13,116840.0,116830.0,0.49418937]
[1754699088361,0.13,116840.0,116830.0,0.49107937]
[1754699088515,0.13213,116840.0,116830.0,0.49107937]
[1754699096896,0.13532,116840.0,116830.0,0.49107937]
[1754699098570,0.13213,116840.0,116830.0,0.49107937]
[1754699099879,0.13,116840.0,116830.0,0.49422937]
[1754699107603,0.30117425,116840.0,116830.0,0.49422937]
[1754699107791,0.30332425,116840.0,116830.0,0.49107937]
[1754699110051,0.70505885,116840.0,116830.0,0.1721889]
[1754699110257,0.38821838,116840.0,116830.0,0.001]
[1754699110472,0.70505885,116840.0,116830.0,0.001]
[1754699110674,1.13288143,116840.0,116830.0,0.001]
[1754699110880,1.15859843,116840.0,116830.0,0.001]
[1754699112025,1.15859843,116840.0,116830.0,0.002]
[1754699113468,1.15859843,116840.0,116830.0,0.001]
[1754699113683,1.15859843,116840.0,116830.0,0.003]
[1754699114568,1.17604745,116840.0,116830.0,0.003]
[1754699118204,0.54236651,116840.0,116830.0,0.003]
[1754699118411,1.17604745,116840.0,116830.0,0.003]
[1754699125956,0.54236651,116840.0,116830.0,0.003]
[1754699126284,1.15192745,116840.0,116830.0,0.003]
[1754699129766,0.83508698,116840.0,116830.0,0.003]
[1754699129979,1.15192745,116840.0,116830.0,0.003]
[1754699145620,0.51824651,116840.0,116830.0,0.003]
[1754699145783,1.15192745,116840.0,116830.0,0.003]
[1754699146998,0.83508698,116840.0,116830.0,0.0051]
[1754699147414,1.15192745,116840.0,116830.0,0.0051]
[1754699147687,1.14873745,116840.0,116830.0,0.0051]
[1754699147895,0.83189698,116840.0,116830.0,0.0051]
[1754699148108,1.14873745,116840.0,116830.0,0.0051]
[1754699148320,0.51505651,116840.0,116830.0,0.0051]
[1754699148534,1.14873745,116840.0,116830.0,0.0051]
[1754699148933,1.15169745,116840.0,116830.0,0.0051]
[1754699152408,0.51801651,116840.0,116830.0,0.0051]
[1754699152621,0.51801651,116840.0,116830.0,0.00823]
[1754699152622,0.49541749,116840.0,116830.0,0.00823]
[1754699152835,0.81225796,116840.0,116830.0,0.00823]
[1754699154597,0.49541749,116840.0,116830.0,0.00823]
[1754699154823,0.41371336,116840.0,116830.0,0.0051]
[1754699155027,0.73253383,116840.0,116830.0,0.0051]
[1754699157369,0.41569336,116840.0,116830.0,0.32194047]
[1754699162375,0.41569336,116840.0,116830.0,0.0051]
[1754699162590,0.41883336,116840.0,116830.0,0.31984047]
[1754699162777,0.41883336,116840.0,116830.0,0.003]
[1754699162989,0.50562761,116840.0,116830.0,0.003]
[1754699164549,0.50562761,116840.0,116830.0,0.31984047]
[1754699166617,0.50562761,116840.0,116830.0,0.003]
[1754699166832,0.50562761,116840.0,116830.0,0.31984047]
[1754699167036,0.41883336,116840.0,116830.0,0.003]
[1754699167240,0.41883336,116840.0,116830.0,0.32181047]
[1754699168253,0.41883336,116840.0,116830.0,0.00497]
[1754699168460,0.41883336,116840.0,116830.0,0.32181047]
[1754699168868,0.41883336,116840.0,116830.0,0.00497]
[1754699169041,0.47469275,116840.0,116830.0,0.32181047]
[1754699169483,0.47469275,116840.0,116830.0,0.49299937]
[1754699169710,0.41569336,116840.0,116830.0,0.49299937]
[1754699169915,0.41569336,116840.0,116830.0,0.32181047]
[1754699170848,0.41569336,116840.0,116830.0,0.00497]
[1754699171054,0.41569336,116840.0,116830.0,0.32181047]
[1754699171263,0.41883336,116840.0,116830.0,0.31984047]
[1754699171463,0.50562761,116840.0,116830.0,0.31984047]
[1754699174479,0.50562761,116840.0,116830.0,0.003]
[1754699174706,0.50562761,116840.0,116830.0,0.31984047]
[1754699177424,0.50562761,116840.0,116830.0,0.003]
[1754699177630,0.50562761,116840.0,116830.0,0.31984047]
[1754699183414,0.50562761,116840.0,116830.0,0.32180047]
[1754699191443,0.41367336,116840.0,116830.0,0.49622937]
[1754699192407,0.41367336,116840.0,116830.0,0.00496]
[1754699192608,0.41577336,116840.0,116830.0,0.32180047]
[1754699196415,0.41901336,116840.0,116830.0,0.32180047]
[1754699200198,0.41901336,116840.0,116830.0,0.00496]
[1754699200422,0.50580761,116840.0,116830.0,0.32180047]
[1754699203272,0.41901336,116840.0,116830.0,0.32180047]
[1754699204714,0.41901336,116840.0,116830.0,0.00496]
[1754699204983,0.41901336,116840.0,116830.0,0.32180047]
[1754699213082,0.41901336,116840.0,116830.0,0.00496]
[1754699213288,0.41901336,116840.0,116830.0,0.32180047]
[1754699213785,0.50580761,116840.0,116830.0,0.32180047]
[1754699219933,0.50580761,116840.0,116830.0,0.003]
[1754699220144,0.50580761,116840.0,116830.0,0.31984047]
[1754699220371,0.50580761,116840.0,116830.0,0.003]
[1754699221017,0.82264808,116840.0,116830.0,0.003]
[1754699223432,0.50580761,116840.0,116830.0,0.003]
[1754699223647,0.82264808,116840.0,116830.0,0.003]
[1754699223853,0.50580761,116840.0,116830.0,0.003]
[1754699224216,0.82264808,116840.0,116830.0,0.003]
[1754699224973,0.50580761,116840.0,116830.0,0.003]
[1754699225207,0.82264808,116840.0,116830.0,0.003]
[1754699225861,0.50580761,116840.0,116830.0,0.003]
[1754699226092,0.82264808,116840.0,116830.0,0.003]
[1754699230748,0.50580761,116840.0,116830.0,0.003]
[1754699230874,0.82264808,116840.0,116830.0,0.003]
[1754699231284,0.50580761,116840.0,116830.0,0.003]
[1754699231485,0.82264808,116840.0,116830.0,0.003]
[1754699231699,0.50580761,116840.0,116830.0,0.003]
[1754699233328,0.50580761,116840.0,116830.0,0.31984047]
[1754699234352,0.50580761,116840.0,116830.0,0.003]
[1754699234548,0.50580761,116840.0,116830.0,0.31984047]
[1754699236537,0.50580761,116840.0,116830.0,0.003]
[1754699236782,0.50580761,116840.0,116830.0,0.31984047]
[1754699238833,0.50360793,116840.0,116830.0,0.31984047]
[1754699239474,0.50360793,116840.0,116830.0,0.49102937]
[1754699241372,0.50360793,116840.0,116830.0,0.1741889]
[1754699241580,0.41367336,116840.0,116830.0,0.1793589]
[1754699241793,0.41367336,116840.0,116830.0,0.49619937]
[1754699242032,0.24249911,116840.0,116830.0,0.49619937]
[1754699242446,0.24249911,116840.0,116830.0,0.81303984]
[1754699242658,0.24249911,116840.0,116830.0,0.49619937]
[1754699244199,0.21678211,116840.0,116830.0,0.49619937]
[1754699244415,0.12992,116840.0,116830.0,0.81303984]
[1754699244781,0.025716,116850.0,116840.0,0.17117425]
[1754699244983,0.025716,116850.0,116840.0,0.81216486]
[1754699245185,0.1,116860.0,116840.0,0.81216486]
[1754699245186,0.1,116860.0,116850.0,0.1711596]
[1754699245408,0.23064,116860.0,116850.0,0.1763296]
[1754699245646,0.23064,116860.0,116850.0,0.81001054]
[1754699246049,0.23064,116860.0,116850.0,0.1763296]
[1754699246236,0.23064,116860.0,116850.0,0.81001054]
[1754699246896,0.23164,116860.0,116850.0,0.94945751]
[1754699247434,0.101,116860.0,116850.0,0.94945751]
[1754699248068,0.103,116860.0,116850.0,0.94945751]
[1754699248548,0.103,116860.0,116850.0,1.26629798]
[1754699251504,0.103,116860.0,116850.0,0.94945751]
[1754699254471,0.103,116860.0,116850.0,1.26629798]
[1754699255005,0.103,116860.0,116850.0,1.29200398]
[1754699255616,0.103,116860.0,116850.0,1.29097807]
[1754699256231,0.103,116860.0,116850.0,0.34148257]
[1754699256433,0.103,116860.0,116850.0,1.29097807]
[1754699257750,0.103,116860.0,116850.0,0.97447957]
[1754699258391,0.23404,116860.0,116850.0,0.97447957]
[1754699262659,0.23905,116860.0,116850.0,0.6441641]
[1754699262878,0.23905,116860.0,116850.0,0.5133641]
[1754699263079,0.23905,116860.0,116850.0,0.1968656]
[1754699263300,0.23905,116860.0,116850.0,0.8298626]
[1754699263874,0.23905,116860.0,116850.0,0.5133641]
[1754699264524,0.23905,116860.0,116850.0,0.8298626]
[1754699264930,0.23905,116860.0,116850.0,0.1968656]
[1754699265290,0.23905,116860.0,116850.0,0.8298626]
[1754699265501,0.23905,116860.0,116850.0,0.5133641]
[1754699265735,0.45121314,116860.0,116850.0,0.5133641]
[1754699267926,0.45121314,116860.0,116850.0,0.1968656]
[1754699268094,0.45121314,116860.0,116850.0,0.5133641]
[1754699273582,0.41019495,116860.0,116850.0,0.5133641]
[1754699275855,0.23905,116860.0,116850.0,0.5133641]
[1754699276483,0.23905,116860.0,116850.0,0.5154341]
[1754699278870,0.23905,116860.0,116850.0,0.1989356]
[1754699279087,0.41019495,116860.0,116850.0,0.1989356]
[1754699279300,0.41019495,116860.0,116850.0,0.5133641]
[1754699280369,0.41019495,116860.0,116850.0,0.1968656]
[1754699280632,0.41019495,116860.0,116850.0,0.5133641]
[1754699280806,0.41019495,116860.0,116850.0,0.1968656]
[1754699281069,0.41019495,116860.0,116850.0,0.5133641]
[1754699289359,0.41019495,116860.0,116850.0,0.1968656]
[1754699289563,0.41019495,116860.0,116850.0,0.5133641]
[1754699290390,0.41019495,116860.0,116850.0,0.4876581]
[1754699290592,0.42568723,116860.0,116850.0,0.1711596]
[1754699290821,0.42568723,116860.0,116840.0,0.51338175]
[1754699291051,0.42568723,116860.0,116840.0,0.64494175]
[1754699291493,0.41019495,116860.0,116840.0,0.64494175]
[1754699291648,0.40819495,116860.0,116840.0,0.64494175]
[1754699291826,0.40819495,116860.0,116850.0,0.3164985]
[1754699292099,0.40719495,116860.0,116840.0,0.64494175]
[1754699292442,0.40819495,116860.0,116840.0,0.64494175]
[1754699292638,0.40719495,116860.0,116840.0,0.64494175]
[1754699293081,0.41019495,116860.0,116840.0,0.51338175]
[1754699293489,0.41887807,116860.0,116840.0,0.51338175]
[1754699294249,0.1711596,116850.0,116840.0,0.51338175]
[1754699294493,0.1732696,116850.0,116840.0,0.48974275]
[1754699294890,0.23516637,116850.0,116840.0,0.17117425]
[1754699295490,0.23516637,116850.0,116840.0,0.48767275]
[1754699295692,0.1773596,116850.0,116840.0,0.48767275]
[1754699296349,0.1783596,116850.0,116840.0,0.48767275]
[1754699297349,0.1783596,116850.0,116840.0,0.17117425]
[1754699297908,0.1783596,116850.0,116830.0,0.73861908]
[1754699298119,0.1314,116840.0,116830.0,1.07861908]
[1754699298303,0.1314,116840.0,116830.0,1.08068908]
[1754699298509,0.1314,116840.0,116830.0,1.08923488]
[1754699299267,0.1314,116840.0,116830.0,0.77273638]
[1754699299461,0.1314,116840.0,116830.0,0.98143264]
[1754699300894,0.1314,116840.0,116830.0,0.66493414]
[1754699301221,0.1314,116840.0,116830.0,0.98143264]
[1754699304353,0.1742496,116850.0,116830.0,0.98143264]
[1754699304570,0.35191455,116850.0,116830.0,0.97288684]
[1754699304983,0.35191455,116850.0,116840.0,0.17117425]
[1754699305212,0.3076896,116850.0,116840.0,0.17117425]
[1754699305365,0.3076896,116850.0,116840.0,0.48767275]
[1754699305778,0.3076896,116850.0,116840.0,0.48969275]
[1754699307060,0.3086896,116850.0,116840.0,0.48969275]
[1754699307684,0.3096896,116850.0,116840.0,0.48969275]
[1754699308184,0.3096896,116850.0,116840.0,0.17319425]
[1754699308385,0.3096896,116850.0,116840.0,0.48969275]
[1754699317162,0.3096896,116850.0,116840.0,0.48969275]
[1754699320206,0.3096896,116850.0,116840.0,0.17319425]
[1754699320409,0.3096896,116850.0,116840.0,0.48969275]
[1754699321101,0.3096896,116850.0,116840.0,0.17319425]
[1754699321314,0.3096896,116850.0,116840.0,0.48969275]
[1754699321527,0.3096896,116850.0,116840.0,0.17319425]
[1754699322567,0.3096896,116850.0,116840.0,0.17117425]
[1754699344933,0.33204706,116850.0,116840.0,0.17117425]
[1754699345235,0.3096896,116850.0,116840.0,0.17117425]
[1754699346340,0.3096896,116850.0,116840.0,0.17312425]
[1754699352010,0.3065996,116850.0,116840.0,0.48962275]
[1754699352209,0.3065996,116850.0,116840.0,0.17312425]
[1754699352834,0.3065996,116850.0,116840.0,0.48962275]
[1754699354806,0.1334,116850.0,116840.0,0.49287275]
[1754699359299,0.1334,116850.0,116840.0,0.17637425]
[1754699359459,0.3097396,116850.0,116840.0,0.17117425]
[1754699360424,0.3097396,116850.0,116840.0,0.17312425]
[1754699360627,0.3097396,116850.0,116840.0,0.17117425]
[1754699362108,0.3097396,116850.0,116840.0,0.17323425]
[1754699366416,0.36868378,116850.0,116830.0,0.65455834]
[1754699366579,0.36868378,116850.0,116830.0,0.96780684]
[1754699366998,0.17117425,116840.0,116830.0,0.51974834]
[1754699367135,0.17621425,116840.0,116830.0,0.17974834]
[1754699367788,0.00504,116840.0,116830.0,0.17974834]
[1754699368405,0.00504,116840.0,116830.0,0.18180834]
[1754699368675,0.00504,116840.0,116830.0,0.49830684]
[1754699369348,0.0021,116840.0,116830.0,0.49830684]
[1754699370891,0.17327425,116840.0,116830.0,0.49830684]
[1754699374009,0.17327425,116840.0,116830.0,0.18180834]
[1754699374140,0.17327425,116840.0,116830.0,0.49830684]
[1754699382954,0.17327425,116840.0,116830.0,0.18180834]
[1754699383171,0.17327425,116840.0,116830.0,0.49830684]
[1754699387029,0.17327425,116840.0,116830.0,0.18180834]
[1754699387233,0.17327425,116840.0,116830.0,0.49830684]
[1754699392571,0.17327425,116840.0,116830.0,0.50131684]
[1754699396899,0.17327425,116840.0,116830.0,0.18481834]